Cogmind - Beta 15 @@@ ROGUE MODE // 2025.08.23 @ 18:10:58 Player: Cracklepappy Result: Self-destructed Performance ------------- Evolutions (2) 1000 Regions Visited (10) 2000 Robots Destroyed (211) 1055 Value Destroyed (6696) 6696 Prototype IDs (47) 940 Alien Tech Used (0) 0 Bonus (1832) 1832 TOTAL SCORE: 13523 Bonus ------- High Alert Combat Kills 877 Follower Combat Kills 255 Entered Garrisons 400 Aligned with FarCom 300 Cogmind --------- Core Integrity 20/550 Matter 300/300 Energy 310/310 System Corruption 1% Temperature Cool (0) Movement Rolling (123) Ox2 Location -8/Garrison Parts ------- > --- POWER (1) -------- Reinforced Fission Core > --- PROPULSION (3) --- Wheel Compact Wheel Compact Wheel > --- UTILITY (3) ------ Improved Cooling System Huge Storage Unit Advanced Weapon Cycler > --- WEAPON (4) ------- Gatling Laser Gatling Laser Gatling Laser Gatling Laser > --- INVENTORY (25) --- Compact Wheel Compact Wheel Advanced Heat Sink Experimental Heat Sink High-capacity Matter Pod (200) Experimental Sensor Array Experimental Core Analyzer Improved Armor Integrity Analyzer Improved Core Shielding System Purifier High-powered Tractor Beam AS-neutralizer No. 17b Proton Cannon Proton Cannon Proton Cannon Proton Cannon Heavy Assault Rifle Heavy Assault Rifle Heavy Assault Rifle Enhanced Autogun Enhanced Autogun Missile Launcher Datajack Plasma Cutter Great Axe Peak State ------------ > --- POWER ------------ Improved Ion Engine > --- PROPULSION ------- Wheel Wheel > --- UTILITY ---------- Improved Heat Sink Huge Storage Unit > --- WEAPON ----------- 8R-AWN's Boregun AWS/Autocannon > --- INVENTORY -------- Reinforced Fission Core Wheel Wheel Cooling System Large Matter Pod High-capacity Matter Pod Recoil Stabilizer AS-neutralizer No. 17b Heavy Assault Rifle Heavy Assault Rifle Heavy Assault Rifle Heavy Assault Rifle Heavy Assault Rifle Autogun Autogun Enhanced Autogun Enhanced Autogun Enhanced Autogun Enhanced Autogun Light Cannon Rocket Launcher Plasma Cutter Maul Longsword +1 [Rating: 54] Favorites ----------- Power Improved Ion Engine Engine Improved Ion Engine Power Core Reinforced Fission Core Reactor Cold Fusion Reactor Propulsion Wheel Wheel Wheel Utility Huge Storage Unit Device Improved Heat Sink Storage Huge Storage Unit Processor Machine Analyzer Hackware Hacking Suite Protection Improved Core Shielding Weapon Heavy Assault Rifle Energy Gun Gatling Laser Energy Cannon Beam Cannon Ballistic Gun Heavy Assault Rifle Ballistic Cannon Light Cannon Launcher Rocket Launcher Special Weapon Plasma Cutter Impact Weapon Maul Slashing Weapon Longsword +1 Special Melee Weapon Datajack Build | -11 -10 -10 -9 -9 -9 -8 -8 -8 -8 -8 ------- Run | Yrd Mat Min Mat Min Exi Min Mat Gar Mat Gar Slots Evolved 4 | . . . 2 . . . 2 . . . Power . | . . . . . . . . . . . Propulsion 1 | . . . . . . . 1 . . . Utility 1 | . . . . . . . 1 . . . Weapon 2 | . . . 2 . . . . . . . Parts Attached 109 | 8 13 2 20 4 12 2 21 17 . 10 Power 12 | 1 1 1 4 . 2 1 1 1 . . Engine 8 | 1 1 . 4 . 2 . . . . . Core 3 | . . 1 . . . 1 . 1 . . Reactor 1 | . . . . . . . 1 . . . Propulsion 24 | 2 3 . 7 3 . 1 5 2 . 1 Treads . | . . . . . . . . . . . Leg . | . . . . . . . . . . . Wheel 24 | 2 3 . 7 3 . 1 5 2 . 1 Hover . | . . . . . . . . . . . Flight . | . . . . . . . . . . . Utility 16 | 2 2 1 2 . . . 6 3 . . Device 11 | 1 1 1 2 . . . 4 2 . . Storage 2 | 1 1 . . . . . . . . . Processor 1 | . . . . . . . 1 . . . Hackware 1 | . . . . . . . 1 . . . Protection 1 | . . . . . . . . 1 . . Artifact . | . . . . . . . . . . . Weapon 57 | 3 7 . 7 1 10 . 9 11 . 9 Energy Gun 6 | 1 1 . . . . . . . . 4 Energy Cannon 10 | . 3 . 2 . . . 5 . . . Ballistic Gun 23 | 2 . . . 1 7 . 3 5 . 5 Ballistic Cannon 8 | . 1 . 3 . 1 . . 3 . . Launcher 3 | . 1 . 1 . . . 1 . . . Special Weapon 2 | . 1 . . . . . . 1 . . Impact Weapon 1 | . . . 1 . . . . . . . Slashing Weapon 3 | . . . . . 1 . . 2 . . Piercing Weapon . | . . . . . . . . . . . Special Melee Weapon 1 | . . . . . 1 . . . . . Unidentified Prototypes . | . . . . . . . . . . . Parts Lost 18 | . 3 . 2 1 1 . 1 9 . 1 Power 2 | . 1 . . . 1 . . . . . Propulsion 7 | . 1 . 2 . . . . 3 . 1 Utility 1 | . . . . . . . . 1 . . Weapon 8 | . 1 . . 1 . . 1 5 . . Highest Loss Streak 9 | . 1 . 1 1 1 . 1 9 . 1 To Critical Strikes . | . . . . . . . . . . . Average Backups 24 | 2 21 25 24 24 22 25 24 24 25 24 Power 1 | . 1 1 1 1 1 2 1 . . . Propulsion 2 | . 5 4 2 2 2 2 1 1 1 2 Utility 8 | . 6 8 8 7 6 11 10 11 10 10 Weapon 10 | . 8 10 11 12 12 8 9 9 11 11 Tool/Special . | . . . . . . . . . . . Unused Backups 53 | 1 3 3 13 1 6 1 3 2 3 17 Power 4 | . . . 1 . 3 . . . . . Propulsion 5 | 1 1 . . . . 1 . . . 2 Utility 29 | . 1 3 8 1 3 . 2 1 2 8 Weapon 15 | . 1 . 4 . . . 1 1 1 7 Tool/Special . | . . . . . . . . . . . Average Slot Usage (%) 98 | . 99 100 99 99 93 100 99 98 100 99 Engine 7 | . 14 12 8 11 11 11 . . . . Core 1 | . . 1 2 . . . . 2 9 9 Reactor 1 | . . . . . . . 8 6 . . Wheel 24 | . 27 28 21 22 22 22 27 26 27 26 Device 11 | . 14 14 11 11 11 11 11 12 9 11 Storage 10 | . 14 14 11 11 11 11 9 9 9 9 Protection 1 | . . . . . . . . 4 9 6 Energy Cannon 13 | . 19 28 21 22 2 . 16 6 . . Ballistic Gun 14 | . 3 . . 7 26 44 19 24 36 24 Ballistic Cannon 7 | . . . 21 14 4 . . 4 . . Peak Build Rating 54 | 7 9 14 21 23 54 29 40 47 47 49 Average Rating 25 | 5 8 10 17 22 29 28 36 43 46 44 On Entrance 24 | . 7 9 14 21 23 29 29 39 47 46 Naked Turns . | . . . . . . . . . . . Heaviest Build 154 | 13 90 92 106 106 154 97 120 119 117 120 Greatest Support 42 | 26 26 20 20 20 20 20 36 36 36 42 Greatest Overweight (x) 7 | . 5 4 5 5 7 4 3 5 3 4 Average Overweight (x) 3 | . 3 4 4 5 4 4 3 2 3 2 Largest Inventory Capacity 25 | 8 25 25 25 25 25 25 25 25 25 25 Average Capacity 24 | 7 24 25 25 25 25 25 25 25 25 25 Most Carried 25 | 8 25 25 25 25 25 25 25 25 25 25 Average Carried 24 | 3 21 24 24 24 22 25 24 24 24 24 Final Capacity 25 | 8 25 25 25 25 25 25 25 25 25 25 Final Carried 25 | 8 25 25 25 25 25 25 25 25 25 25 Class Distribution -------------------- 26% | Scavenger-Gunner 24% | Gunner 18% | Mutant 10% | Scavenger-Skirmisher 9% | Tank 9% | Scavenger-Tank Dominant Class ---------------- Mutant | -10/Materials Mutant | -10/Mines Gunner | -9/Materials Scavenger-Gunner | -9/Mines Scavenger-Gunner | -9/Exiles Scavenger-Gunner | -8/Mines Scavenger-Skirmisher | -8/Materials Scavenger-Tank | -8/Garrison Tank | -8/Materials Tank | -8/Garrison Resources | -11 -10 -10 -9 -9 -9 -8 -8 -8 -8 -8 ----------- Run | Yrd Mat Min Mat Min Exi Min Mat Gar Mat Gar Matter Collected 5244 | 336 221 309 919 174 602 285 749 1021 283 345 Remotely . | . . . . . . . . . . . Salvage Created 7778 | 161 861 329 1302 257 570 431 2101 909 495 362 Parts 526 | 18 54 19 95 30 76 26 107 48 27 26 Haulers Intercepted 11 | . 2 . 5 . . . 4 . . . Recyclers Shooed 4 | . 1 1 . . . . 1 . 1 . Parts Field Recycled . | . . . . . . . . . . . Retrieved Matter . | . . . . . . . . . . . Parts Self-Destructed . | . . . . . . . . . . . Prevented . | . . . . . . . . . . . Kills | -11 -10 -10 -9 -9 -9 -8 -8 -8 -8 -8 ------- Run | Yrd Mat Min Mat Min Exi Min Mat Gar Mat Gar Combat Hostiles Destroyed 136 | . 21 3 28 9 3 4 31 22 6 9 Guns 55 | . 3 . . 1 1 4 15 16 6 9 Cannons 75 | . 17 3 25 8 . . 16 6 . . AOE 6 | . 1 . 3 . 2 . . . . . Classes Destroyed 21 | 2 5 2 2 . 3 2 . 2 . 3 Worker 12 | . . 2 3 2 . 2 2 . 1 . Builder 10 | . . 1 1 2 . 2 3 . 1 . Tunneler 11 | 4 . 3 . . . 1 3 . . . Hauler 11 | . 2 . 5 . . . 4 . . . Recycler 11 | 1 1 1 . . . 2 4 . 2 . Mechanic 2 | . . . 1 . . . 1 . . . Operator 2 | . 1 . 1 . . . . . . . Turret 1 | . . . . . 1 . . . . . Watcher 7 | . 2 . 2 . . . 2 . 1 . Swarmer 31 | . 7 . 10 6 . . 6 2 . . Grunt 61 | . 14 3 9 3 . 2 13 12 3 2 Brawler 1 | . . . . . . . . . . 1 Duelist 4 | . . . . . . 1 2 1 . . Sentry 28 | . . . 9 . . . 9 4 3 3 Demolisher 1 | . . . . . . . . . . 1 Specialist 1 | . . . . . . . . 1 . . Hunter 3 | . . . . . . 1 1 1 . . Programmer 2 | . . . . . . . . . . 2 Behemoth 1 | . . . . . . . . 1 . . Zionite 8 | . . . . . 8 . . . . . Assembled 2 | . . . . . 2 . . . . . Best Kill Streak 6 | 5 4 3 6 5 5 3 6 4 3 3 Combat Bots Only 4 | . 4 2 4 3 2 3 4 4 2 3 Max Kills in Single Turn 2 | 1 2 2 2 2 2 1 2 1 2 1 Gunslinging . | . . . . . . . . . . . Exploded 2 | . 1 . 2 . 2 . . . . . Melee . | . . . . . . . . . . . Uniques/NPCs Destroyed 4 | . . . . . 4 . . . . . 8R-AWN (-9/Exiles) EX-DEC (-9/Exiles) EX-HEX (-9/Exiles) EX-BIN (-9/Exiles) Combat | -11 -10 -10 -9 -9 -9 -8 -8 -8 -8 -8 -------- Run | Yrd Mat Min Mat Min Exi Min Mat Gar Mat Gar Hostile Shots Fired 483 | . 66 4 74 42 51 16 90 103 13 24 Missed 140 | . 26 3 22 6 15 4 32 23 4 5 Hits 343 | . 40 1 52 36 36 12 58 80 9 19 Melee 2 | . . . . . . 1 1 . . . Projectile 341 | . 40 1 52 36 36 11 57 80 9 19 AOE 5 | . . . . . . . . . . 5 Critical Strikes 29 | . . . 1 . 20 3 2 3 . . Damage Taken 5337 | . 433 16 659 322 639 211 825 1638 134 460 Core 875 | . 93 . 97 49 58 48 122 279 12 117 Absorbed by Shields 149 | . . . . . . . 8 141 . . Redirected to Shielding 68 | . . . . . . . . 33 4 31 Regen/Repaired (Parts) 104 | . . . 51 . . . 53 . . . Core Remaining (%) 66 | 100 . 62 . . . 37 . . . . Volleys Fired 486 | 11 59 17 81 18 57 17 118 74 18 16 Largest 4 | 2 2 2 4 4 4 4 4 4 4 4 Hottest 320 | 40 120 120 180 180 99 92 248 196 100 320 Shots Fired 1389 | 22 115 34 271 68 81 68 345 249 72 64 Gun 621 | 22 24 . . 5 78 68 150 138 72 64 Cannon 755 | . 88 34 264 63 1 . 194 111 . . Launcher 6 | . 1 . 2 . 2 . 1 . . . Special 7 | . 2 . 5 . . . . . . . Kinetic 779 | 22 10 . 118 36 79 68 150 184 72 40 Thermal 590 | . 90 34 151 32 . . 194 65 . 24 Explosive 6 | . 1 . 2 . 2 . 1 . . . Electromagnetic 14 | . 14 . . . . . . . . . Robot Hit Streak 20 | 5 10 5 8 9 9 12 12 12 13 20 Robot Miss Streak 6 | 2 5 3 4 6 4 4 6 5 3 5 Penetration Max 1 | . . . . . 1 . . . . . Secondary Targets 2 | . 1 . . . . 1 . . . . Max Gunslinging Chain 1 | . 1 . . . . 1 . . . . Shots Hit Robots 732 | 10 67 19 120 27 84 39 165 123 35 43 Core Hits 320 | 6 31 11 52 14 30 18 76 42 19 21 Critical Kills 2 | . . . . . 1 1 . . . . Critical Parts Destroyed 7 | . . . . . 5 . 1 1 . . Critical Strikes 23 | . . . 5 1 10 1 1 5 . . Destroy 10 | . . . . . 6 1 1 2 . . Blast 9 | . . . 5 1 . . . 3 . . Sever 4 | . . . . . 4 . . . . . Melee Attacks 69 | . . . 1 . 53 . . 14 . 1 Impact 1 | . . . 1 . . . . . . . Slashing 64 | . . . . . 49 . . 14 . 1 Piercing . | . . . . . . . . . . . Sneak Attacks 4 | . . . . . 4 . . . . . Combat Hostiles . | . . . . . . . . . . . Follow-up Attacks . | . . . . . . . . . . . Damage Inflicted 16038 | 165 1223 348 2554 592 2970 559 3461 2718 623 825 Guns 5217 | 165 188 . . 65 458 559 1228 1106 623 825 Cannons 7966 | . 927 348 2377 527 . . 2175 1612 . . Explosions 409 | . 108 . 177 . 66 . 58 . . . Melee 2446 | . . . . . 2446 . . . . . Ramming . | . . . . . . . . . . . Kinetic 6805 | 165 101 . 1054 295 458 559 1228 1894 623 428 Thermal 6349 | . 927 348 1323 297 . . 2233 824 . 397 Explosive 351 | . 108 . 177 . 66 . . . . . Electromagnetic 87 | . 87 . . . . . . . . . Impact . | . . . . . . . . . . . Slashing 2446 | . . . . . 2446 . . . . . Piercing . | . . . . . . . . . . . Highest Corruption 1 | . . . . . . . . . . 1 Average Corruption 1 | . . . . . . . . . . 1 Corruption Purged . | . . . . . . . . . . . Corruption Blocked . | . . . . . . . . . . . Overload Shots . | . . . . . . . . . . . Overflow Damage 197 | . 27 . 43 7 38 . 77 5 . . Projectiles 141 | . 27 . 43 7 . . 59 5 . . Explosions 18 | . . . . . . . 18 . . . Melee 38 | . . . . . 38 . . . . . Knockbacks 8 | . . . 4 4 . . . . . . Impact . | . . . . . . . . . . . Kinetic 8 | . . . 4 4 . . . . . . Secondary . | . . . . . . . . . . . Self-Inflicted Damage . | . . . . . . . . . . . Shots . | . . . . . . . . . . . Rammed 1 | . . . . . . 1 . . . . Targets Rammed 1 | . . . . . . 1 . . . . Kicked . | . . . . . . . . . . . Crushed . | . . . . . . . . . . . Highest Temperature 600 | . 180 81 425 228 . 25 264 600 96 408 Average Temperature 74 | . 52 28 79 94 . 16 25 146 42 129 Received Heat Transfer 1757 | . 177 9 234 51 . 72 440 648 63 63 Effects 10 | . . . . . . . . 9 . 1 Shutdowns 1 | . . . . . . . . . . 1 Interference 2 | . . . . . . . . 2 . . Short Circuit 1 | . . . . . . . . 1 . . Damage (minor) 4 | . . . . . . . . 4 . . Damage (major) 1 | . . . . . . . . 1 . . Damage (core) 1 | . . . . . . . . 1 . . Siege Activations . | . . . . . . . . . . . Martial Activations . | . . . . . . . . . . . Shielding Activations . | . . . . . . . . . . . Robots Disrupted . | . . . . . . . . . . . Combat Hostiles . | . . . . . . . . . . . Robots Corrupted . | . . . . . . . . . . . Combat Hostiles . | . . . . . . . . . . . Parts Fried . | . . . . . . . . . . . Impact Corruptions . | . . . . . . . . . . . Robots Melted . | . . . . . . . . . . . Combat Hostiles . | . . . . . . . . . . . Parts Melted 18 | . 5 1 2 . . . 8 . . 2 Heat Transferred 11346 | . 1961 740 2627 481 . . 3528 1184 . 825 Parts Sabotaged . | . . . . . . . . . . . Parts Stolen . | . . . . . . . . . . . Parts Stripped . | . . . . . . . . . . . Power Chain Reactions . | . . . . . . . . . . . Alert | -11 -10 -10 -9 -9 -9 -8 -8 -8 -8 -8 ------- Run | Yrd Mat Min Mat Min Exi Min Mat Gar Mat Gar Maximum Alert Level 4 | . 1 . 2 . . . 2 4 3 3 Low Security (%) 53 | 100 66 100 52 100 . 100 44 . . . Level 1 19 | . 33 . 47 . . . 13 7 . . Level 2 12 | . . . . . . . 41 7 5 94 Level 3 11 | . . . . . . . . 61 94 5 Level 4 3 | . . . . . . . . 23 . . Level 5 . | . . . . . . . . . . . High Security . | . . . . . . . . . . . Max Security . | . . . . . . . . . . . Peak Influence 1405 | 15 285 104 433 178 . 62 681 1405 772 767 Initial 684 | . . 104 . 100 . . . 328 684 466 Average 287 | 3 103 23 168 87 . 8 279 936 729 608 Influence Increases 5027 | 25 622 105 986 248 . 135 1105 1227 203 371 Destroy 0b10 Robot/C 2840 | . 420 60 560 180 . 80 620 600 120 200 Destroy 0b10 Robot/NC 340 | 25 30 35 75 20 . 35 95 . 25 . Destroy Leader 576 | . 98 10 164 30 . 20 172 20 42 20 Allied During Kill 24 | . . . . . . . . 23 . 1 Successful Hack 105 | . 12 . 43 . . . 50 . . . Select Force Hacks 30 | . 30 . . . . . . . . . Disable Machine 240 | . . . 75 . . . 75 60 15 15 Anti-Garrison Action 500 | . . . . . . . . 400 . 100 Destroy Structure 177 | . 17 . 24 3 . . 48 79 1 5 Partial Spotted 30 | . . . 15 . . . 15 . . . Lose Combat Pursuer 165 | . 15 . 30 15 . . 30 45 . 30 Influence Decreases 4260 | 25 353 372 729 507 . 133 602 327 891 321 Entered New Map 1477 | . . 165 2 159 . . 2 177 721 251 Time Decay 2203 | 25 333 207 557 338 . 133 440 . 170 . Lost Part 160 | . 20 . 20 10 . . 10 90 . 10 Lost Ally 120 | . . . . . . . . 60 . 60 Purge Threat 300 | . . . 150 . . . 150 . . . Squads Dispatched 19 | . 7 1 1 . . . 7 . 3 . Investigation 7 | . 3 1 . . . . 2 . 1 . Extermination . | . . . . . . . . . . . Reinforcement 7 | . 4 . 1 . . . 1 . 1 . Assault 1 | . . . . . . . 1 . . . Garrison 4 | . . . . . . . 3 . 1 . Intercept . | . . . . . . . . . . . Searches Triggered . | . . . . . . . . . . . Construction Impeded . | . . . . . . . . . . . Haulers Reinforced . | . . . . . . . . . . . Active Scanning Responses . | . . . . . . . . . . . Cargo Convoy Interrupts . | . . . . . . . . . . . Stealth | -11 -10 -10 -9 -9 -9 -8 -8 -8 -8 -8 --------- Run | Yrd Mat Min Mat Min Exi Min Mat Gar Mat Gar Distress Signals 7 | . 1 . 1 . . . 4 . 1 . Communications Jammed . | . . . . . . . . . . . Distress Signals . | . . . . . . . . . . . Times Spotted 194 | . 32 2 44 11 10 4 43 29 8 11 Peak Tracking Total 9 | . 3 2 4 4 9 3 6 6 4 5 Tactical Retreats 9 | . 1 . 2 1 2 . 1 1 . 1 Traps | -11 -10 -10 -9 -9 -9 -8 -8 -8 -8 -8 ------- Run | Yrd Mat Min Mat Min Exi Min Mat Gar Mat Gar Traps Triggered 7 | . 2 . . . . . . 4 . 1 Indirectly . | . . . . . . . . . . . Trap Hack Attempts . | . . . . . . . . . . . Triggered . | . . . . . . . . . . . Disarmed . | . . . . . . . . . . . Reprogrammed . | . . . . . . . . . . . Reused . | . . . . . . . . . . . Traps Extracted . | . . . . . . . . . . . Installed . | . . . . . . . . . . . Triggered . | . . . . . . . . . . . Machines | -11 -10 -10 -9 -9 -9 -8 -8 -8 -8 -8 ---------- Run | Yrd Mat Min Mat Min Exi Min Mat Gar Mat Gar Machines Disabled 32 | . . . 5 . 10 . 5 9 1 2 Max in Single Turn 2 | . . . 2 . 1 . 2 1 1 1 Garrison Relay 6 | . . . . . . . . 5 . 1 Machines Repaired . | . . . . . . . . . . . Machines Dismantled 2 | . . . . . . . . 1 . 1 Machines Sabotaged . | . . . . . . . . . . . Overloaded Fab Kills . | . . . . . . . . . . . Hacking | -11 -10 -10 -9 -9 -9 -8 -8 -8 -8 -8 --------- Run | Yrd Mat Min Mat Min Exi Min Mat Gar Mat Gar Machines Accessed 40 | . 6 1 14 . 2 . 10 3 2 2 Terminals 26 | . 5 . 11 . . . 5 3 . 2 Fabricators . | . . . . . . . . . . . Repair Stations 3 | . . . 1 . . . 1 . 1 . Recycling Units 2 | . 1 . . . . . 1 . . . Scanalyzers 4 | . . . 2 . . . 2 . . . Garrison Access 2 | . . . . . . . 1 . 1 . Total Hacks 126 | . 24 1 52 . 2 . 31 5 5 6 Successful 58 | . 8 1 28 . 2 . 14 1 4 . Failed 67 | . 16 . 23 . . . 17 4 1 6 Catastrophic 11 | . 2 . 3 . . . 3 1 . 2 Database Lockouts 1 | . . . 1 . . . . . . . Manual 61 | . 22 . 21 . 1 . 14 . 2 1 Terminals 90 | . 22 . 42 . . . 15 5 . 6 Fabricators . | . . . . . . . . . . . Repair Stations 8 | . . . 3 . . . 3 . 2 . Recycling Units 4 | . 2 . . . . . 2 . . . Scanalyzers 16 | . . . 7 . . . 9 . . . Garrison Access 5 | . . . . . . . 2 . 3 . Terminal Hacks 20 | . 1 1 12 . 2 . 3 1 . . Record 1 | . . . . . 1 . . . . . Robot Schematic 1 | . . . 1 . . . . . . . Prototype ID Bank 5 | . . . 4 . . . 1 . . . Open Door 1 | . . 1 . . . . . . . . Emergency Access Points 1 | . . . . . . . . 1 . . Terminal Index 1 | . . . 1 . . . . . . . Unreport Threat 2 | . . . 1 . . . 1 . . . Locate Traps 4 | . . . 3 . . . 1 . . . Hauler Manifests 1 | . . . 1 . . . . . . . Registered Components 1 | . . . 1 . . . . . . . Zone Layout 1 | . 1 . . . . . . . . . Proto ID Catalog 1 | . . . . . 1 . . . . . Fabricator Hacks . | . . . . . . . . . . . Repair Station Hacks 5 | . . . 2 . . . 2 . 1 . Scan Component 3 | . . . 1 . . . 1 . 1 . Repair 2 | . . . 1 . . . 1 . . . Recycling Unit Hacks 1 | . . . . . . . 1 . . . Retrieve Components 1 | . . . . . . . 1 . . . Scanalyzer 10 | . . . 7 . . . 3 . . . Insert Component 5 | . . . 3 . . . 2 . . . Analyze 5 | . . . 4 . . . 1 . . . Garrison Access Hacks 2 | . . . . . . . 1 . 1 . Unlock Access 2 | . . . . . . . 1 . 1 . Unauthorized Hacks 20 | . 7 . 7 . . . 4 . 2 . Terminals 16 | . 6 . 7 . . . 3 . . . Assimilate 1 | . . . 1 . . . . . . . Operators 3 | . 1 . 1 . . . 1 . . . Skim 12 | . 5 . 5 . . . 2 . . . Fabricators . | . . . . . . . . . . . Repair Stations . | . . . . . . . . . . . Recycling Units 1 | . 1 . . . . . . . . . Tunnel 1 | . 1 . . . . . . . . . Scanalyzers . | . . . . . . . . . . . Garrison Access 3 | . . . . . . . 1 . 2 . Broadcast 1 | . . . . . . . . . 1 . Reprogram 2 | . . . . . . . 1 . 1 . Data Cores Recovered 1 | . . . 1 . . . . . . . Used . | . . . . . . . . . . . Hacking Detections 36 | . 6 . 14 . . . 9 3 2 2 Full Trace Events 3 | . . . . . . . 1 1 . 1 Feedback Events . | . . . . . . . . . . . Feedback Blocked . | . . . . . . . . . . . Robot Schematics Acquired 1 | . . . 1 . . . . . . . Robots Built . | . . . . . . . . . . . Authchips . | . . . . . . . . . . . Time . | . . . . . . . . . . . Total Robot Build Rating . | . . . . . . . . . . . Part Schematics Acquired 4 | . . . 3 . . . 1 . . . Parts Built . | . . . . . . . . . . . Authchips . | . . . . . . . . . . . Time . | . . . . . . . . . . . Total Part Build Rating . | . . . . . . . . . . . Parts Repaired 2 | . . . 1 . . . 1 . . . Time 70 | . . . 32 . . . 38 . . . Parts Recycled . | . . . . . . . . . . . Recycled Matter . | . . . . . . . . . . . Retrieved Matter . | . . . . . . . . . . . Retrieved Components 4 | . . . . . . . 4 . . . Parts Scanalyzed 4 | . . . 3 . . . 1 . . . Part Schematics Acquired 4 | . . . 3 . . . 1 . . . Parts Damaged 2 | . . . 1 . . . 1 . . . Bothacking | -11 -10 -10 -9 -9 -9 -8 -8 -8 -8 -8 ------------ Run | Yrd Mat Min Mat Min Exi Min Mat Gar Mat Gar Used RIF Installer . | . . . . . . . . . . . Robots Hacked 4 | . . . . . 4 . . . . . Non-combat 3 | . . . . . 3 . . . . . Combat 1 | . . . . . 1 . . . . . Robot Hacks Applied 4 | . . . . . 4 . . . . . parse_system 4 | . . . . . 4 . . . . . Relay Couplers Released 28 | . . . . . . . . 23 . 5 Machine Destruction 28 | . . . . . . . . 23 . 5 Fabnet Peak Effective % . | . . . . . . . . . . . Robots Rewired . | . . . . . . . . . . . Allies Hacked . | . . . . . . . . . . . Hacks Repelled . | . . . . . . . . . . . Allies | -11 -10 -10 -9 -9 -9 -8 -8 -8 -8 -8 -------- Run | Yrd Mat Min Mat Min Exi Min Mat Gar Mat Gar Total Allies 6 | . . . . . . . 2 1 1 2 Largest Group 2 | . . . . . . . 2 2 . 2 Highest-Rated Group 51 | . . . . . . . 48 48 . 51 Highest-Rated Ally 39 | . . . . . . . 24 39 . 31 Initial Warlord ECA Mod 22 | . . . . . . . . . 11 11 Total Orders . | . . . . . . . . . . . Ally Attacks 39 | . . . . . . . . 32 . 7 Total Damage 805 | . . . . . . . . 627 . 178 Kills 9 | . . . . . . . . 8 . 1 Allies Corrupted . | . . . . . . . . . . . Allies Melted . | . . . . . . . . . . . Intel | -11 -10 -10 -9 -9 -9 -8 -8 -8 -8 -8 ------- Run | Yrd Mat Min Mat Min Exi Min Mat Gar Mat Gar Active Infowar (turns) 1664 | 34 369 . . . . . 1261 . . . Seismic 403 | 34 369 . . . . . . . . . Machine Analysis 1261 | . . . . . . . 1261 . . . Robot Analysis Total . | . . . . . . . . . . . Derelict Logs Recovered 3 | . . 2 . 1 . . . . . . Drone Launches . | . . . . . . . . . . . Drone Recoveries . | . . . . . . . . . . . Exploration | -11 -10 -10 -9 -9 -9 -8 -8 -8 -8 -8 ------------- Run | Yrd Mat Min Mat Min Exi Min Mat Gar Mat Gar Turns Passed 12436 | 119 1433 721 2785 919 1850 724 1643 1400 358 484 Spaces Moved 6918 | 72 720 467 1504 548 1025 469 853 816 166 278 Core 1 | 1 . . . . . . . . . . Treads . | . . . . . . . . . . . Legs . | . . . . . . . . . . . Wheels 6917 | 71 720 467 1504 548 1025 469 853 816 166 278 Hover . | . . . . . . . . . . . Flight . | . . . . . . . . . . . Fastest Speed 50 | 50 90 140 140 155 140 140 125 116 131 123 Average Speed 138 | 89 137 140 144 155 148 140 125 128 131 126 Slowest Speed 185 | 90 175 140 155 155 185 140 131 155 131 150 Overloaded Moves . | . . . . . . . . . . . Propulsion Burnouts . | . . . . . . . . . . . Robots Hopped . | . . . . . . . . . . . Potential Cave-ins . | . . . . . . . . . . . Cave-ins Triggered . | . . . . . . . . . . . Exploration Rate (%) 68 | 4 97 88 98 98 90 93 58 86 21 21 Regions Visited 10 Branch Regions 4 Pre-discovered Areas 4 | . 1 . 2 . 1 . . . . . Known Exits Taken 2 | . . . . . . . 1 . 1 . Unknown Exits Taken 7 | 1 1 1 1 1 1 1 . . . . Scrap Searched 4 | . . 2 . 1 . 1 . . . . Spaces Dug 25 | . 1 . 13 . . . 8 3 . . Terrain Destroyed 113 | . 13 . 21 3 24 . 48 4 . . Melee 3 | . . . . . . . . 3 . . Projectile 67 | . 2 . 11 3 7 . 43 1 . . AOE 40 | . 11 . 10 . 14 . 5 . . . Terrain Rammed . | . . . . . . . . . . . Walls Destroyed . | . . . . . . . . . . . Machines Disabled . | . . . . . . . . . . . Actions | -11 -10 -10 -9 -9 -9 -8 -8 -8 -8 -8 --------- Run | Yrd Mat Min Mat Min Exi Min Mat Gar Mat Gar Total 8769 | 102 1042 503 1939 576 1242 501 1208 1003 293 360 Wait 857 | . 214 8 264 1 42 8 180 21 99 20 Move 6908 | 71 719 466 1503 547 1024 468 852 814 166 278 Hop . | . . . . . . . . . . . Pick Up 128 | 10 26 4 28 2 20 1 14 13 5 5 Fast Attach 17 | 7 . . . . 2 1 2 3 . 2 Attach 27 | . 3 . 4 1 8 . 3 8 . . Detach 4 | . . . . . 4 . . . . . Swap 109 | 1 14 2 24 3 10 3 21 16 . 15 Drop 116 | 2 7 6 34 4 22 2 18 9 5 7 Fire 486 | 11 59 17 81 18 57 17 118 74 18 16 Melee 69 | . . . 1 . 53 . . 14 . 1 Ram 1 | . . . . . . 1 . . . . Kick . | . . . . . . . . . . . Crush . | . . . . . . . . . . . Escape Stasis 31 | . . . . . . . . 23 . 8 Rewire . | . . . . . . . . . . . Trap . | . . . . . . . . . . . Miscellaneous 16 | . . . . . . . . 8 . 8 Route ------- -11/Scrapyard -10/Materials (discovered 6 exits: *Mat x3 / *Min x2 / [*Sub]) -10/Mines (discovered 2 exits: *Mat x2) -9/Materials (discovered 4 exits: *Mat x3 / [*Min]) -9/Mines (discovered 3 exits: *Mat x2 / *Exi) -9/Exiles (discovered 2 exits: [*Min x2]) -8/Mines (discovered 2 exits: *Mat x2) -8/Materials (discovered 3 exits: *Fac x2 / Gar) -8/Garrison (discovered 3 exits: *Mat x3) -8/Materials -8/Garrison History --------- Turn | Location | Event 2 | -11/Scrapyard | Met Revision 17 25 | -11/Scrapyard | Discovered new exit (range 16) 120 | -11/Scrapyard | Entered Materials 313 | -10/Materials | Build established: Mutant 407 | -10/Materials | Discovered new exit (range 8) 555 | -10/Materials | Discovered new exit (range 9) 905 | -10/Materials | Discovered new exit (range 8) 1047 | -10/Materials | Discovered new exit (range 16) 1420 | -10/Materials | Discovered new exit (range 11) 1479 | -10/Materials | Discovered new exit (range 11) 1553 | -10/Materials | Entered Mines 1565 | -10/Mines | Learned Materials stockpile data 1572 | -10/Mines | Discovered new exit (range 13) 1897 | -10/Mines | Met a Derelict shopkeep closing up shop 2086 | -10/Mines | Learned 2 Materials zone layouts 2260 | -10/Mines | Discovered new exit (range 10) 2274 | -10/Mines | Entered Materials 2274 | -9/Materials | Evolved 2 slots: Weapon x2 2587 | -9/Materials | Build established: Gunner 3145 | -9/Materials | Central database locked down 3351 | -9/Materials | Discovered new exit (range 7) 3662 | -9/Materials | Discovered new exit (range 8) 3956 | -9/Materials | Learned Storage terminal intel 4025 | -9/Materials | Learned Storage garrison access intel 4032 | -9/Materials | Discovered new exit (range 6) 4082 | -9/Materials | Learned 2 Storage zone layouts 4131 | -9/Materials | Learned Storage emergency access door positions 4190 | -9/Materials | Learned Storage emergency access door positions 4238 | -9/Materials | Discovered new exit (range 12) 4414 | -9/Materials | Repaired Trap Extractor 5059 | -9/Materials | Entered Mines 5212 | -9/Mines | Discovered new exit (range 9) 5354 | -9/Mines | Learned location of 1 exit from Materials 5411 | -9/Mines | Discovered new exit (range 10) 5451 | -9/Mines | Build established: Scavenger-Gunner 5482 | -9/Mines | Found a damaged Exp. Sensor Array with a note attached 5486 | -9/Mines | Found Prototype Device 5575 | -9/Mines | Deemed a non-threat by the Exiles lab entrance 5575 | -9/Mines | Discovered new exit (range 5) 5978 | -9/Mines | Entered Exiles 5999 | -9/Exiles | Discovered new exit (range 15) 6017 | -9/Exiles | Met 8R-AWN 6045 | -9/Exiles | Met EX-HEX 6121 | -9/Exiles | Met EX-DEC 6163 | -9/Exiles | Learned location of Zion (-7) 6197 | -9/Exiles | Met EX-BIN 6318 | -9/Exiles | Discovered new exit (range 14) 6455 | -9/Exiles | Aligned with FarCom system 6456 | -9/Exiles | Given EX-Vault access code 6490 | -9/Exiles | Opened EX-Vault 6497 | -9/Exiles | Found Longsword +1 6502 | -9/Exiles | Found AWS/Autocannon 6528 | -9/Exiles | Warned to stay clear of 0b10 Research branches 6787 | -9/Exiles | Attacked by the Exiles 6933 | -9/Exiles | Core integrity fell below 50% 6950 | -9/Exiles | Found 8R-AWN's Boregun 6957 | -9/Exiles | Found AS-neutralizer No. 17b 7180 | -9/Exiles | Build established: Gunner 7215 | -9/Exiles | Destroyed 8R-AWN 7481 | -9/Exiles | Destroyed EX-DEC 7544 | -9/Exiles | Destroyed EX-HEX 7561 | -9/Exiles | Destroyed EX-BIN 7566 | -9/Exiles | Found System Purifier 7644 | -9/Exiles | Found Exp. Core Analyzer 7704 | -9/Exiles | Build established: Scavenger-Gunner 7828 | -9/Exiles | Entered Mines 7956 | -8/Mines | Discovered new exit (range 12) 8153 | -8/Mines | Discovered new exit (range 9) 8552 | -8/Mines | Entered Materials 8552 | -8/Materials | Evolved 2 slots: Propulsion x1, Utility x1 8553 | -8/Materials | Identified exit to Factory 8720 | -8/Materials | Repaired Missile Launcher 8874 | -8/Materials | Build established: Scavenger-Skirmisher 9534 | -8/Materials | Discovered exit to Factory (range 15) 9752 | -8/Materials | First assault squad dispatched 9808 | -8/Materials | Garrison activated, responded to threat 10098 | -8/Materials | Identified exit to Garrison 10144 | -8/Materials | Build established: Scavenger-Tank 10195 | -8/Materials | Entered Garrison 10195 | -8/Garrison | Accompanied by 2 allies 10241 | -8/Garrison | Triggered checkpoint 10258 | -8/Garrison | Garrison Relay disabled 10335 | -8/Garrison | Triggered checkpoint 10429 | -8/Garrison | Rescued a captive Derelict 10508 | -8/Garrison | Discovered new exit (range 8) 10645 | -8/Garrison | Triggered checkpoint 10663 | -8/Garrison | Garrison Relay disabled 10742 | -8/Garrison | Spotted B-75 Beast 10900 | -8/Garrison | Core integrity fell below 50% 10907 | -8/Garrison | Destroyed B-75 Beast 10935 | -8/Garrison | Lost 9 parts (3n1u5w) 11057 | -8/Garrison | Discovered new exit (range 11) 11113 | -8/Garrison | Triggered checkpoint 11160 | -8/Garrison | Garrison Relay disabled 11263 | -8/Garrison | Triggered checkpoint 11340 | -8/Garrison | Build established: Tank 11374 | -8/Garrison | Garrison Relay disabled 11381 | -8/Garrison | Discovered new exit (range 10) 11389 | -8/Garrison | Triggered checkpoint 11412 | -8/Garrison | Garrison Relay disabled 11475 | -8/Garrison | Attempted to access garrison exit controls, blocked by remote lockdown 11595 | -8/Garrison | Entered Materials 11855 | -8/Materials | Identified exit to Garrison 11951 | -8/Materials | Garrison activated, responded to threat 11953 | -8/Materials | Entered Garrison 11953 | -8/Garrison | Accompanied by 1 ally 12094 | -8/Garrison | Rescued a captive Derelict 12098 | -8/Garrison | Rescued a captive Derelict 12173 | -8/Garrison | Triggered checkpoint 12187 | -8/Garrison | Core integrity fell below 20% 12207 | -8/Garrison | Garrison Relay disabled 12437 | -8/Garrison | Self-destructed Last Messages --------------- 12207_ Relay Coupler [Swarmer] tumbles out of relay unit. 12217_ The unstable cave ceiling collapses. 12262_ Acquired 11 matter. 12285_ Dropped Hvy. Assault Rifle. 12286_ Acquired Gatling Laser. 12290_ Dropped Proton Cannon. 12291_ Acquired Gatling Laser. 12323_ Acquired 39 matter. 12338_ Acquired 59 matter. 12345_ Target Analyzer melted. 12345_ P-60 Hacker destroyed. 12351_ Power failure, Rnf. Fission Core shutdown. 12358_ P-60 Hacker destroyed. 12363_ Acquired 30 matter. 12397_ B-36 Bruiser destroyed. 12412_ G-47 Trooper destroyed. 12415_ Lgt. Nuclear Core melted. 12415_ G-47 Trooper destroyed. 12425_ Acquired 33 matter. 12436_ Penetrated by Slug. Map ----- +----------------------------------------------------+ | ?????????????????????????????????????????????????? | | ?????????????????????????????????????????????????? | | ?????????????????????????????????????????????????? | | ?????????????????????????????????????????????????? | | ?????????????????????????????????????????????????? | | ?????????????????????????????????????????????????? | | ?????????????????????????????????????????????????? | | ?????????????????????????????????????????????????? | | ?????????????????????????????????????????????????? | | ?????????????????????????????????????????????????? | | ?????????????????????????????????????????????????? | | ????????????????????????####?????????????????????? | | ???????????????????????# ??? ?????????????????? | | ??????????????????????? ?? ????????????????? | | ??????????????????????? ?? ???????????????? | | ???????????????????????# #? #???????????????? | | ???????????????????????# ## #?? ???????????? | | ???????????????????????" ?? h???????????? | | ???????????????????????" ? ???????????? | | ???????????????????????" ? ????????????? | | ???????????????????????" ?? ??????????????? | | ???????????????????????# #?? #???????????????? | | ?????????############### ## ## ##?????????? | | ?????????# ^^ ????????? | | ?????????# / ????????? | | ?????????# == =@ #??????????? | | ?????????# ####%#######+###""""#???????????????? | | ?????????# #??#[#??????????????????????????????? | | ?######??# #??# #??????????????????????????????? | | ## ###?# #??# #??????????????????????????????? | | # #?# #??# #??????????????????????????????? | | # # ### #### #??????????????????????????????? | | #??????????????????????????????? | | # ##### ######??????????????????????????????? | | % ###??# #???????????????????????????????????? | | # #??# #???????????????????????????????????? | | ! #??# #???????????????????????????????????? | | # # #??# #???????????????????????????????????? | | ### ###??# #???????????????????????????????????? | | ??# #????# #?????#########?????????????????????? | | ### #????# #?????#!! !!#?????????????????????? | | " #????# #?????#!! !!#?????????????????????? | | !! #????# #?????#] #?????????????????????? | | ! #????# #?????# [ !!#?????????????????????? | | #####????# !#?????#] [ !!#?????????????????????? | | ?????????# =!#?????####+####?????????????????????? | | ?????????#[=!#????????# #????????????????????????? | | ????????##!=*########## #????????????????????????? | | ????????# !! [= =[%=#????????????????????????? | | ????????## *=#######|####????????????????????????? | +----------------------------------------------------+ Best States ------------- Heat Dissipation 58 Energy Generation 19 Energy Capacity 310 Matter Stores 300 Matter Capacity 300 Sight Range 16 Terrain Scan Density 10 Core Shielding 30 Weapon Cycling 25 Evasion (%) 42 Offensive Hacking 10 Authchip Count 1 Item Schematics ----------------- Wheel | -9/Materials | Scanalyzed Assault Rifle | -9/Materials | Scanalyzed Med. Matter Pod | -9/Materials | Scanalyzed Exp. Heat Sink | -8/Materials | Scanalyzed Robot Schematics ------------------ M-13 Machinist | -9/Materials | Hacked Fabricated ------------ Nothing Repaired ---------- Trap Extractor | 27% | -9/Materials Missile Launcher | 29% | -8/Materials Alien Tech Used ----------------- None Achievements -------------- None Challenges ------------ None Game ------ Seed RefineryGravjetInsulator Manual? 0 Play Time 01:20:44 Cumulative 1285.1 hours Start 2025.08.23 @ 15:57:34 End 2025.08.23 @ 18:10:58 Sessions 1 Manual Loads 0 Difficulty Rogue Special Mode None Game No. 609 Rogue 609 Adventurer 0 Explorer 0 Win Type - Total 23 Types 10/4/3/0/1/1/2/2/0/0 Lore% 92 Gallery% 90 Achievement% 84 Wizard Run 0 Options --------- Layout 0 ASCII 0 Keyboard 0 Movement Numpad Keybinds 0 Fullscreen 2 Font 24/Smallcaps Map View 76x50 Zoom Use 0% Tactical HUD 1 Map Filters NONE Filters SHIFT_HUE(315) Steam 1 RUN: f09b5344-9f51-42d8-87b4-74d26068f951